[Event "EYTCC Open U18 2022"]
[Site "Thessaloniki"]
[Date "2022.07.18"]
[Round "7.17"]
[White "Morgunov, Marc"]
[Black "Herega, Nejc"]
[Result "1-0"]
[ECO "B93"]
[WhiteElo "2376"]
[BlackElo "2160"]
[Annotator "TA"]
[PlyCount "67"]
[EventDate "2022.07.12"]
[EventType "team-tourn"]
[EventCountry "GRE"]
[SourceTitle "playchess.com"]
[Source "ChessBase"]
[SourceQuality "1"]
[WhiteTeam "Austria"]
[BlackTeam "Slovenia"]
[WhiteTeamCountry "AUT"]
[BlackTeamCountry "SLO"]
[TimeControl "40/5400+30:1800+30"]

{[%evp 12,67,0,0,10,13,21,44,84,84,80,80,82,87,93,82,143,145,142,126,181,150,194,200,321,321,313,156,160,157,180,156,191,197,391,375,386,400,401,169,174,167,722,694,2558,2262,2039,1886,2237,2061,29988,29989,29989,29990,29991,29992,29992,29993]} 1. e4 {[%emt 0:00:03]} c5 {[%emt 0:00:12]} 2. Nf3 {[%emt 0:00:05]} d6 {[%emt 0:00:18]} 3. d4 {[%emt 0:00:04]} cxd4 {[%emt 0:00:25]} 4. Nxd4 {[%emt 0:00:04]} Nf6 {[%emt 0:00:10]} 5. Nc3 {[%emt 0:00:03]} a6 {[%emt 0:01:41]} 6. f4 {[%emt 0:00:16][%cal Bf2f4,Bf4g5][%mdl 32]} e5 {[%emt 0:02:07]} 7. Nb3 {[%emt 0:00:08]} Nbd7 {[%emt 0:02:05] 7...Nc6 is the fancy move. B93: Sicilian Najdorf: 6 f4.} 8. g4 {[%emt 0:00:08]} h6 {[%emt 0:11:15]} 9. g5 {[%emt 0:05:25]} hxg5 {[%emt 0:01:47] White is slightly better.} 10. fxg5 {[%emt 0:00:04]} Nh5 {[%emt 0:01:03]} 11. Qf3 {[%emt 0:04:08]} Nb6 {[%emt 0:08:13]} 12. Be3 $36 {[%emt 0:04:15][%mdl 2048] White is really pushing.} Be6 {[%emt 0:09:15]} 13. O-O-O {[%emt 0:14:16]} g6 {[%emt 0:08:23]} ({Better is} 13... Rc8) 14. Nc5 $1 $16 {[%emt 0:11:01] [#]} Be7 $146 {[%emt 0:06:59]} ({Predecessor:} 14... Ng7 15. Nxb7 Qc7 16. Na5 Na4 17. Nxa4 Qxa5 18. b3 Rb8 19. Bd2 Qc7 20. Qc3 Qb7 {1-0 (27) Oberhofer,C (2222)-Spiess,M (2118) Rosenheim 2017}) 15. Nxe6 {[%emt 0:07:26] White is much more active. The black rooks are badly placed.} (15. Nxb7 $6 Qc7 16. Na5 Rb8 $16) 15... fxe6 {[%emt 0:00:26]} 16. Qh3 {[%emt 0:03:20]} Kf7 {[%emt 0:06:17]} 17. Qg4 {[%emt 0:00:53] Hoping for h4.} Nf4 {[%emt 0:02:57]} (17... Rc8 $142 18. Be2 (18. Bh3 Kg7 $14) 18... Ng7) 18. Bxf4 $18 {[%emt 0:00:32]} exf4 {[%emt 0:00:17]} 19. Qxf4+ {[%emt 0:00:31]} (19. Bh3 e5 $14) (19. e5 $18 {and the rest is easy.}) 19... Kg7 $16 {[%emt 0:00:10]} 20. Kb1 {[%emt 0:00:24]} Rc8 {[%emt 0:02:22][%cal Oc8c3]} 21. e5 {[%emt 0:08:42]} Rxc3 {[%emt 0:07:22] [#]} 22. Qd4 $1 {[%emt 0:02:46]} (22. bxc3 $6 Nd5 23. Rxd5 (23. Qd4 Bxg5 24. Bc4 dxe5 $15) 23... exd5 $16) 22... d5 {[%emt 0:06:50]} (22... Rc6) 23. Qxc3 $18 {[%emt 0:00:26]} Na4 {[%emt 0:00:08]} 24. Qd4 {[%emt 0:01:22]} Qa5 {[%emt 0:01:04]} 25. Bd3 {[%emt 0:10:55]} (25. h4 $142) 25... Bc5 {[%emt 0:03:56]} 26. Qg4 {[%emt 0:00:26]} (26. Qf4 Rf8 27. Qh4 Qb4 28. Qxb4 (28. Qh6+ Kf7 $11) 28... Bxb4 $18) 26... Re8 {[%emt 0:04:12]} (26... Nxb2 27. Qxe6 (27. Kxb2 {leads to mate.} Ba3+ 28. Kb1 Qb6+) 27... Nxd1 28. Qf6+ (28. Rxd1 Qb4+ 29. Kc1 Be3+) (28. Qxg6+ Kf8 $16) 28... Kg8 29. Qxg6+ (29. Rxd1 {gets mated.} Qb4+ 30. Kc1 Be3+) 29... Kf8 30. Qf6+ (30. Rxd1 Qb4+ 31. Kc1 Be3+) 30... Kg8 31. Qe6+ (31. Rxd1 Qb4+ 32. Kc1 Be3+) 31... Kf8 32. Qf6+ (32. Rxd1 Qb4+ 33. Kc1 Be3+) (32. Qc8+ Ke7 $16) 32... Kg8 33. Qe6+ (33. Rxd1 Qb4+ 34. Kc1 Be3+) 33... Kf8 34. Qc8+ (34. Rxd1 Qb4+ 35. Kc1 Be3+) 34... Ke7 35. Qxb7+ (35. Qxh8 $2 Qb4+ 36. Kc1 Be3+ 37. Kxd1 Qd2#) 35... Ke6 36. Qc6+ (36. Rxd1 Qb4+ 37. Qxb4 Bxb4 $16) 36... Ke7 37. Qb7+ (37. Rxd1 Qb4+ 38. Kc1 Be3+) (37. Qf6+ Kd7 $11) 37... Ke6 38. Rxd1 (38. Qc6+ Ke7 $16) 38... Qb4+ 39. Qxb4 Bxb4) 27. Rhf1 {[%emt 0:06:44][%cal Bh1f1,Bf1f6,Bf6g6,Bg6g8][%mdl 32]} Nc3+ {[%emt 0:03:32]} 28. bxc3 {[%emt 0:00:11]} Ba3 {[%emt 0:00:06]} 29. Qd4 {[%emt 0:00:38] [#] White threatens Rf6 and mate.} Rh8 {[%emt 0:02:57]} 30. Rf6 {[%emt 0:03:47] White wants to mate with Qf2.} Rh4 {[%emt 0:00:57]} 31. Rxg6+ {[%emt 0:00:04] White mates.} Kf8 {[%emt 0:00:34]} 32. Qf2+ {[%emt 0:00:04]} Ke8 {[%emt 0:01:02]} 33. Rg8+ {[%emt 0:00:11]} Kd7 {[%emt 0:00:35]} 34. Qf7+ {[%emt 0:00:14] Weighted Error Value: White=0.16 (very precise) /Black=0.52} 1-0

[Event "EYTCC Open U18 2022"]
[Site "Thessaloniki"]
[Date "2022.07.18"]
[Round "7.18"]
[White "Olenik Campa, Rudi"]
[Black "Kristoferitsch, Daniel"]
[Result "0-1"]
[ECO "B40"]
[WhiteElo "2203"]
[BlackElo "2312"]
[Annotator "TA"]
[PlyCount "94"]
[EventDate "2022.07.12"]
[EventType "team-tourn"]
[EventCountry "GRE"]
[SourceTitle "playchess.com"]
[Source "ChessBase"]
[SourceQuality "1"]
[WhiteTeam "Slovenia"]
[BlackTeam "Austria"]
[WhiteTeamCountry "SLO"]
[BlackTeamCountry "AUT"]
[TimeControl "40/5400+30:1800+30"]

{[%evp 9,94,8,24,13,32,21,19,22,25,12,34,8,20,24,41,-51,-42,-62,-58,-66,-61,-111,0,-112,-65,-48,-52,-119,-126,-103,-103,-106,-96,-117,-117,-122,-118,-119,-114,-115,-109,-118,-93,-110,-102,-108,-107,-112,-112,-118,-114,-126,-117,-123,-130,-130,-130,-131,-130,-189,-175,-400,-385,-390,-364,-316,-325,-401,-378,-547,-541,-499,-486,-585,-554,-793,-838,-709,-636,-1150,-1198,-1320,-821,-6440,-5035,-29962,-6984]} 1. e4 c5 {[%emt 0:00:00]} 2. Nf3 {[%emt 0:00:16]} e6 {[%emt 0:00:00]} 3. c4 {[%emt 0:00:08]} Nc6 {[%emt 0:00:00]} 4. Be2 {[%emt 0:00:07]} g5 {[%emt 0:00:00]} 5. d3 {[%emt 0:00:10]} h6 {[%emt 0:00:00]} 6. Nc3 {[%emt 0:00:29] B40: Sicilian: 2...e6, Unusual lines.} Bg7 {[%emt 0:00:00]} 7. h4 {[%emt 0:00:12][%cal Rh4g5]} g4 {[%emt 0:00:01]} 8. Nd2 {[%emt 0:00:22] The position is equal.} h5 {[%emt 0:00:03]} 9. Nb3 {[%emt 0:02:39]} b6 {[%emt 0:00:10] [#]} 10. Bg5 $146 {[%emt 0:07:43]} ({Predecessor:} 10. Be3 Nd4 11. f3 Bb7 12. Qd2 Bc6 13. O-O-O a5 14. Na1 Rb8 15. Nc2 b5 16. cxb5 Nxb5 17. Nxb5 Bxb5 {1-0 (40) Steiger,W-Goehring,D freechess.de 2020}) 10... Qc7 {[%emt 0:03:31]} 11. Qd2 {[%emt 0:06:34]} a6 {[%emt 0:04:49]} 12. a4 {[%emt 0:15:50]} ({White should play} 12. O-O-O $14) 12... Nge7 $15 {[%emt 0:05:10]} 13. a5 {[%emt 0:02:29]} bxa5 {[%emt 0:27:31]} 14. Bd1 {[%emt 0:04:43]} ({But not} 14. Nxc5 Nd4 15. N5a4 Nb3 $17) 14... d6 {[%emt 0:12:22]} 15. Ne2 {[%emt 0:05:40]} (15. Ra3 $15) 15... Ng6 {[%emt 0:02:02]} (15... Rb8 $17 16. Nc3 Rb4) 16. Be3 {[%emt 0:08:37]} (16. Nxa5 $11 Nxa5 17. Rxa5) 16... Bd7 {[%emt 0:05:43]} (16... Rb8 $17 17. d4 cxd4 18. Nbxd4 Bd7) 17. Nxa5 {[%emt 0:10:01]} Nxa5 {[%emt 0:03:04]} (17... Rb8 {with more complications.} 18. Nxc6 Rxb2 19. Qa5 Qxc6 20. Qxa6 Bf6) 18. Qxa5 {[%emt 0:00:54] White is now going downhill.} (18. Rxa5 $15 Bxb2 19. O-O) 18... Qxa5+ $17 {[%emt 0:00:06]} 19. Rxa5 {[%emt 0:00:10]} Bxb2 {[%emt 0:00:15]} 20. Kd2 {[%emt 0:05:13]} Bg7 {[%emt 0:03:50]} 21. Bc2 {[%emt 0:00:59]} Kd8 {[%emt 0:00:28]} 22. Nf4 {[%emt 0:02:59]} Ne7 {[%emt 0:03:51]} 23. Rb1 {[%emt 0:00:51]} Kc7 {Inhibits Rb6.} 24. Ra3 {[%emt 0:00:00]} Ra7 {[%emt 0:15:13]} 25. Ke1 {[%emt 0:01:56]} Be5 {[%emt 0:03:21]} 26. Ne2 {[%emt 0:03:47]} Nc6 {[%emt 0:05:33] Prevents d4.} 27. Bd2 {[%emt 0:00:39]} Rha8 {[%emt 0:02:08]} 28. Ba4 {[%emt 0:00:52]} a5 {[%emt 0:00:37][%cal Ba6a5,Ba5a4][%mdl 32]} 29. Bxc6 {[%emt 0:01:22]} Bxc6 {[%emt 0:00:19]} 30. Bc3 {[%emt 0:04:50]} Bxc3+ {[%emt 0:01:29]} 31. Nxc3 {[%emt 0:00:03]} a4 {[%emt 0:00:28]} 32. Kd2 {[%emt 0:03:14]} Rb7 {[%emt 0:01:14]} 33. Rxb7+ {[%emt 0:00:41]} Kxb7 {[%emt 0:00:02][%mdl 4096] Endgame KRB-KRN} 34. Ke3 {[%emt 0:00:29]} (34. Ra1 $17) 34... Kb6 $19 {[%emt 0:01:15]} 35. d4 $2 (35. Ra1 {was called for.}) 35... cxd4+ {[%emt 0:01:14]} 36. Kxd4 {[%emt 0:01:27]} e5+ {[%emt 0:00:08]} 37. Kd3 {[%emt 0:00:03]} Kc5 {[%emt 0:00:15]} 38. Ra2 {[%emt 0:00:48]} Ra7 {[%emt 0:01:23]} 39. f3 {[%emt 0:00:27]} (39. Ra1 {was necessary.}) 39... gxf3 {[%emt 0:00:31]} 40. gxf3 {[%emt 0:00:00]} a3 {[%emt 0:00:00]} 41. Rg2 {[%emt 0:01:21]} Bd7 {[%emt 0:05:59] [#] Threatens to win with ...Be6.} 42. Na2 {[%emt 0:01:58]} Be6 {[%emt 0:00:36]} 43. Rc2 {[%emt 0:00:09]} Ra4 {[%emt 0:01:09][%cal Ra4c4]} 44. Nc3 {[%emt 0:01:02]} Bxc4+ {[%emt 0:00:55]} 45. Kd2 {[%emt 0:00:03]} Ra8 {[%emt 0:02:59]} 46. Na2 {[%emt 0:00:26]} Kd4 {[%emt 0:00:38] [#] ( -> ...Bb3)} 47. Ke1 {[%emt 0:01:29]} Bxa2 {[%emt 0:00:15] Weighted Error Value: White=0.79/Black=0.18 (very precise)} 0-1

[Event "EYTCC Open U18 2022"]
[Site "Thessaloniki"]
[Date "2022.07.18"]
[Round "7.19"]
[White "Borrmann, Laurenz"]
[Black "Gregoric, Andraz"]
[Result "1-0"]
[ECO "C50"]
[WhiteElo "2274"]
[BlackElo "2199"]
[Annotator "TA"]
[PlyCount "151"]
[EventDate "2022.07.12"]
[EventType "team-tourn"]
[EventCountry "GRE"]
[SourceTitle "playchess.com"]
[Source "ChessBase"]
[SourceQuality "1"]
[WhiteTeam "Austria"]
[BlackTeam "Slovenia"]
[WhiteTeamCountry "AUT"]
[BlackTeamCountry "SLO"]
[TimeControl "40/5400+30:1800+30"]

{[%evp 9,151,20,16,7,16,5,13,0,0,0,16,0,10,13,18,8,10,20,17,6,26,13,42,31,35,34,34,22,23,23,23,23,29,23,23,18,23,18,18,25,29,25,26,17,18,13,13,13,11,12,83,83,100,99,106,105,118,108,107,107,114,111,127,133,139,133,125,136,145,134,183,183,183,183,183,164,259,251,225,195,295,260,523,446,547,511,544,550,519,482,615,541,511,467,458,412,439,439,431,351,481,380,350,350,168,165,175,99,2377,1790,5093,5089,5009,5085,4668,4935,3289,2853,2712,1915,1957,1980,1227,1129,29972,29973,29973,29974,29979,29980,29979,29980,29982,29983,29984,29985,29985,29986,29987,29988,29988,29989,29990,29991]} 1. e4 {[%emt 0:00:15]} e5 {[%emt 0:00:05]} 2. Nf3 {[%emt 0:00:06]} Nc6 {[%emt 0:00:04]} 3. Bc4 {[%emt 0:00:11]} Bc5 {[%emt 0:00:04]} 4. d3 {[%emt 0:00:09]} Nf6 {[%emt 0:00:10]} 5. a4 {[%emt 0:00:07]} a5 {[%emt 0:00:07]} 6. O-O {[%emt 0:00:15] C50: Hungarian Defence and Giuoco Pianissimo.} d6 {[%emt 0:00:17]} 7. h3 {[%emt 0:00:20]} O-O {[%emt 0:00:06]} 8. Bg5 {[%emt 0:01:24] The position is equal.} h6 {[%emt 0:00:04] [#]} 9. Be3 $146 {[%emt 0:00:11]} ({Predecessor:} 9. Bh4 g5 10. Bg3 Nh5 11. Bh2 Nf4 12. c3 Qf6 13. Bxf4 gxf4 14. Bd5 Ne7 15. d4 {0-1 (39) Bilguun,S (2497)-Aronian,L (2765) St Petersburg 2018}) 9... Ba7 {[%emt 0:00:11]} 10. Nbd2 {[%emt 0:21:57]} Ne7 {[%emt 0:00:06]} 11. Bxa7 {[%emt 0:01:37]} Rxa7 {[%emt 0:00:02]} 12. d4 {[%emt 0:02:27]} Ng6 {[%emt 0:01:10]} 13. Re1 {[%emt 0:00:45]} Qe7 {[%emt 0:00:16]} 14. Bf1 {[%emt 0:03:45]} Rd8 {[%emt 0:04:55]} 15. Nc4 {[%emt 0:13:02]} Nh7 {[%emt 0:06:18]} 16. Qd2 {[%emt 0:05:40]} Ng5 {[%emt 0:01:53]} 17. Nxg5 {[%emt 0:03:01]} Qxg5 {[%emt 0:07:22]} 18. Rad1 {[%emt 0:08:34]} Be6 {[%emt 0:04:54]} 19. dxe5 {[%emt 0:02:44] Black must now prevent Qxg5.} Bxc4 {[%emt 0:00:38]} 20. Bxc4 {[%emt 0:02:22] Threatens to win with Qxg5.} Nxe5 {[%emt 0:00:57]} 21. Be2 {[%emt 0:00:18] Against Nf3+. And now f4 would win.} Qxd2 {[%emt 0:03:10]} 22. Rxd2 {[%emt 0:00:01]} g5 {[%emt 0:03:18]} 23. f3 {[%emt 0:02:16]} Kf8 {[%emt 0:05:58]} 24. Kf2 {[%emt 0:00:39]} Ke7 {[%emt 0:02:58]} 25. Rh1 {[%emt 0:03:29]} Raa8 {[%emt 0:00:19]} 26. h4 {[%emt 0:01:20]} Rh8 {[%emt 0:02:19]} 27. Rdd1 {[%emt 0:01:26]} Ng6 {[%emt 0:02:05]} 28. hxg5 {[%emt 0:00:39]} hxg5 {[%emt 0:00:06]} 29. Rxh8 {[%emt 0:01:30]} Rxh8 $11 {[%emt 0:00:06][%mdl 4096] Endgame KRB-KRN} (29... Nxh8 $11 30. Rh1 Ng6) 30. Rd5 $16 {[%emt 0:01:02][%csl LRa5,LRg5]} b6 {[%emt 0:02:02]} 31. Rxg5 {[%emt 0:01:50]} Rh1 {[%emt 0:00:09]} 32. Bf1 {[%emt 0:00:28]} Nf4 {[%emt 0:01:59]} 33. Rf5 {[%emt 0:01:24]} Ne6 {[%emt 0:00:50]} 34. Rd5 {[%emt 0:00:10] Inhibits Nd4.} Nf4 {[%emt 0:03:03]} 35. Rd1 {[%emt 0:01:22]} Kf6 {[%emt 0:01:19]} 36. g3 {[%emt 0:01:13]} Ne6 {[%emt 0:01:28]} 37. Kg2 {[%emt 0:00:37]} Rh8 {[%emt 0:00:58]} 38. Bc4 {[%emt 0:00:23]} Nc5 {[%emt 0:01:13]} 39. b3 {[%emt 0:00:27]} Rh5 {[%emt 0:00:30]} (39... Nd7 $16 40. g4 Ke7) 40. Rh1 $18 {[%emt 0:00:00]} Rxh1 {[%emt 0:00:00]} 41. Kxh1 {[%emt 0:00:46] KB-KN} Kg6 {[%emt 0:00:39]} 42. Kg2 {[%emt 0:00:46]} f6 {[%emt 0:02:03]} (42... Kg7 $142 43. Kf2 c6) 43. Bd5 {[%emt 0:03:43]} Na6 {[%emt 0:00:27]} 44. c3 {[%emt 0:00:19] Against Nb4} Nc5 {[%emt 0:00:04]} (44... Kg7 $142 45. Kh3 Nc5) 45. Kf2 {[%emt 0:00:44]} Nd3+ $2 {[%emt 0:01:00]} (45... Nd7 46. Ke3 Kg7) 46. Ke3 {[%emt 0:00:36]} Ne5 {[%emt 0:00:12]} 47. f4 {[%emt 0:03:05]} Nd7 {[%emt 0:00:26]} 48. Kd4 {[%emt 0:01:15]} Nb8 {[%emt 0:00:54]} 49. b4 {[%emt 0:03:31]} c6 {[%emt 0:01:48]} 50. Be6 {[%emt 0:00:51]} Na6 {[%emt 0:00:03]} 51. Bc8 {[%emt 0:01:01]} Nc7 {[%emt 0:01:11]} 52. e5 {[%emt 0:05:51]} fxe5+ {[%emt 0:00:38]} 53. fxe5 {[%emt 0:00:05]} c5+ {[%emt 0:00:10]} 54. bxc5 {[%emt 0:00:46]} dxc5+ {[%emt 0:00:11]} 55. Ke4 {[%emt 0:03:16]} b5 {[%emt 0:00:14]} 56. axb5 {[%emt 0:01:42]} Nxb5 {[%emt 0:00:01]} 57. Kd3 {[%emt 0:00:15]} a4 {[%emt 0:01:16]} 58. Be6 $1 {[%emt 0:00:31]} a3 $2 {[%emt 0:00:21][%mdl 8192] [#] This move loses the game for Black.} (58... Nc7 $16 59. Bc4 Kg7) 59. Kc2 $1 {[%emt 0:09:03] Bd5 is the strong threat.} Nc7 {[%emt 0:02:01] Prevents Bd5.} 60. Bc4 {[%emt 0:06:19]} Kf5 {[%emt 0:00:45] [#]} 61. e6 $1 {[%emt 0:01:05]} Kf6 {[%emt 0:02:44]} 62. Kb3 {[%emt 0:00:47]} Ne8 {[%emt 0:00:27]} 63. Kxa3 {[%emt 0:00:18]} Nd6 {[%emt 0:00:02]} 64. Bd5 {[%emt 0:00:48]} Nf5 {[%emt 0:02:36]} 65. Ka4 {[%emt 0:02:04]} Ke7 {[%emt 0:00:32]} 66. Kb5 {[%emt 0:01:34]} Nxg3 {[%emt 0:02:31]} 67. Kxc5 {[%emt 0:00:09] White mates.} Nf5 {[%emt 0:00:05]} 68. c4 {[%emt 0:00:54][%cal Bc3c4,Bc4c5,Bc5c6][%mdl 32]} Nd6 {[%emt 0:01:05]} 69. Kc6 {[%emt 0:00:34]} Ne8 {[%emt 0:00:17]} 70. c5 {[%emt 0:00:17]} Kd8 {[%emt 0:06:55]} 71. Kb7 {[%emt 0:00:33]} Ke7 {[%emt 0:02:20]} 72. c6 {[%emt 0:02:50]} Kd6 {[%emt 0:00:10]} 73. Ba2 {[%emt 0:00:31]} Nc7 {[%emt 0:01:19]} 74. e7 {[%emt 0:00:54]} Ne8 {[%emt 0:00:05]} 75. Bf7 {[%emt 0:00:06]} Kxe7 {[%emt 0:00:06]} 76. Bxe8 {[%emt 0:00:06] Weighted Error Value: White=0.08 (flawless) /Black=0.22 (precise)} 1-0

[Event "EYTCC Open U18 2022"]
[Site "Thessaloniki"]
[Date "2022.07.18"]
[Round "7.20"]
[White "Skrbec, Leon"]
[Black "Marakovits, Nico"]
[Result "1/2-1/2"]
[ECO "B33"]
[WhiteElo "2103"]
[BlackElo "2259"]
[Annotator "TA"]
[PlyCount "120"]
[EventDate "2022.07.12"]
[EventType "team-tourn"]
[EventCountry "GRE"]
[SourceTitle "playchess.com"]
[Source "ChessBase"]
[SourceQuality "1"]
[WhiteTeam "Slovenia"]
[BlackTeam "Austria"]
[WhiteTeamCountry "SLO"]
[BlackTeamCountry "AUT"]
[TimeControl "40/5400+30:1800+30"]

{[%evp 20,120,29,10,16,15,14,6,14,8,13,7,7,3,8,10,9,0,3,-19,0,0,0,0,0,0,0,0,9,0,10,0,22,22,36,36,36,35,36,36,33,11,11,10,12,6,35,35,89,35,35,13,21,21,35,0,0,0,435,430,979,913,806,0,0,0,1795,1447,1226,-935,1519,547,408,0,0,0,485,450,1000,984,721,0,0,0,0,0,0,0,0,0,0,0,0,0,0,0,0,0,0,0,0,0,0]} 1. e4 {[%emt 0:00:10]} c5 {[%emt 0:00:08]} 2. Nf3 {[%emt 0:00:03]} Nc6 {[%emt 0:00:06]} 3. d4 {[%emt 0:00:28]} cxd4 {[%emt 0:00:05]} 4. Nxd4 {[%emt 0:00:05]} Nf6 {[%emt 0:00:13]} 5. Nc3 {[%emt 0:02:25]} e5 {[%emt 0:00:17]} 6. Ndb5 {[%emt 0:00:08]} d6 {[%emt 0:00:05]} 7. Bg5 {[%emt 0:00:29]} a6 {[%emt 0:00:08]} 8. Na3 {[%emt 0:00:02]} b5 {[%emt 0:00:15]} 9. Nd5 {[%emt 0:00:27]} Be7 {[%emt 0:00:12]} 10. Bxf6 {[%emt 0:00:38]} Bxf6 {[%emt 0:00:13]} 11. c4 {[%emt 0:00:56]} b4 {[%emt 0:00:38] B33: Sicilian: Pelikan and Sveshnikov Variations.} (11... Nd4 {is more complex.} 12. cxb5 Be6 13. Bc4 axb5 14. Bxb5+ Kf8) 12. Nc2 {[%emt 0:00:02]} O-O {[%emt 0:00:09]} 13. g3 {[%emt 0:00:24]} a5 {[%emt 0:00:17]} 14. Bg2 {[%emt 0:00:34]} Bg5 {[%emt 0:00:39] 14...g6 is the hot move.} 15. O-O {[%emt 0:00:09]} Ne7 {[%emt 0:01:59]} 16. Nde3 {[%emt 0:04:47]} Bxe3 {[%emt 0:03:25]} 17. Nxe3 {[%emt 0:00:20]} Be6 {[%emt 0:00:05]} 18. b3 {[%emt 0:00:22]} Qc7 {[%emt 0:02:43]} 19. Qd2 {[%emt 0:03:43][%cal Oe3f5]} Rfd8 {[%emt 0:05:36] [#]} 20. f4 $146 {[%emt 0:06:02]} ({Predecessor:} 20. h4 Nc6 21. Nc2 a4 22. Kh2 Qa5 23. Bh3 Qc5 24. Rfd1 h6 25. h5 Ra7 26. Kg2 Bxh3+ 27. Kxh3 {1-0 (74) Alekseenko,K (2638)-Zhigalko,S (2604) St Petersburg 2018}) 20... f6 {[%emt 0:02:24]} 21. f5 {[%emt 0:01:43]} Bf7 {[%emt 0:00:26]} 22. g4 {[%emt 0:00:30]} Nc6 {[%emt 0:05:49]} 23. Nc2 {[%emt 0:09:16]} a4 {[%emt 0:03:50]} 24. h4 {[%emt 0:10:44]} Qb6+ {[%emt 0:08:01]} 25. Kh2 {[%emt 0:01:13]} h6 {[%emt 0:02:21]} 26. g5 {[%emt 0:01:55]} hxg5 {[%emt 0:00:55]} 27. hxg5 {[%emt 0:00:10]} Kf8 $1 {[%emt 0:01:04]} 28. g6 {[%emt 0:02:36]} Bg8 {[%emt 0:02:29]} 29. Kg3 {[%emt 0:07:31]} Qc5 {[%emt 0:08:26]} 30. Qd3 {[%emt 0:13:25]} Ra6 {[%emt 0:04:57]} 31. Rad1 {[%emt 0:01:22][%cal Ba1d1,Bd1h1,Bh1h8][%mdl 32]} Ke7 {[%emt 0:03:45]} 32. Bf3 {[%emt 0:03:28]} Rda8 {[%emt 0:06:32]} 33. Rf2 {[%emt 0:03:59]} Nd8 {[%emt 0:04:49]} (33... Na5 $14) 34. Rfd2 {[%emt 0:02:10] White is much more active.} ({White should play} 34. Qf1 $1 $16 {[%cal Rf1h1]}) 34... Nb7 $14 {[%emt 0:05:34]} 35. Rh1 {[%emt 0:04:10]} axb3 {[%emt 0:04:43]} 36. axb3 {[%emt 0:00:02]} Ra2 {[%emt 0:02:14]} 37. Ne3 {[%emt 0:02:18]} Rxd2 {[%emt 0:08:01]} 38. Qxd2 {[%emt 0:00:09]} Ra3 $2 {[%emt 0:01:54][%mdl 8192]} (38... Na5 $11 39. Bd1 Nc6) 39. Rh8 $18 {[%emt 0:01:58]} Kf8 {[%emt 0:00:51]} (39... Bxc4 $142 40. Rh7 (40. Nxc4 Rxb3 41. Rg8 Qxc4 $16) 40... Kf8) 40. Ng4 {[%emt 0:00:00]} Rxb3 {[%emt 0:00:00] [#]} 41. Nxf6 $2 {[%emt 0:16:54]} Qg1+ $11 {[%emt 0:07:41]} 42. Kh4 {[%emt 0:00:06][%cal Bg3h4,Bh4g5,Bg5f5][%mdl 32] The board is on fire.} Ke7 $2 {[%emt 0:06:17][%mdl 8192]} 43. Nxg8+ $18 {[%emt 0:00:50]} Kd7 {[%emt 0:00:44] [#]} 44. Bg4 $4 {[%emt 0:01:34][%mdl 8192]} (44. Nf6+ $1 $18 {[%mdl 512]} gxf6 45. Qg2) 44... Qg3+ $4 {[%emt 0:15:07][%mdl 8192]} ({Don't do} 44... Qh1+ 45. Kg5 Qxh8 46. f6+ Kc7 47. f7 $18) (44... Nc5 $19 45. f6+ Kc7) 45. Kg5 {[%emt 0:02:10] Threatening mate with f6+.} Nc5 {[%emt 0:00:18] [#]} 46. f6+ $2 {[%emt 0:03:53]} (46. Nf6+ $1 $18 gxf6+ 47. Kh5) 46... Kc7 {[%emt 0:01:37] ( -> ...Ne6+)} 47. Rh3 {[%emt 0:02:57]} (47. Qd5 Qe3+ 48. Kh4 Rb2) 47... Nxe4+ {[%emt 0:01:26][%mdl 8192]} (47... Qxh3 $2 48. Bxh3 Nxe4+ 49. Kh4 Nxd2 50. fxg7 Nf3+ 51. Kh5 $18) (47... Ne6+ $1 $11 48. Kh5 Nf4+ 49. Qxf4 Qxf4 50. Rxb3 gxf6 51. Nxf6 Qxf6) 48. Kf5 {[%emt 0:00:35]} Qxh3 {[%emt 0:02:12]} (48... Nxd2 $142 49. Rxg3 Rxg3) 49. Bxh3 {[%emt 0:00:01]} Nxd2 {[%emt 0:00:13][%mdl 4096] Endgame [#] KRN-KBN} 50. Bg4 $2 {[%emt 0:00:01]} (50. fxg7 $1 $18 Ra3 51. Nf6) 50... gxf6 $1 $11 {[%emt 0:07:37] The position is equal.} (50... Nxc4 $2 51. f7 Rb2 52. Bf3 $18) 51. Nxf6 {[%emt 0:00:06]} Ra3 {[%emt 0:00:12]} (51... Nxc4 $2 52. g7 Ne3+ 53. Ke6 Nxg4 54. Nxg4 $18) 52. Ne8+ {[%emt 0:00:08]} Kb6 {[%emt 0:01:12]} 53. g7 {[%emt 0:01:10]} b3 {[%emt 0:00:08]} 54. g8=Q {[%emt 0:01:50]} b2 {[%emt 0:00:05]} 55. Nxd6 {[%emt 0:00:49] And now Qb8+ would win.} (55. c5+ $2 Kxc5 56. Nf6 b1=Q+ $19) 55... b1=Q+ {[%emt 0:00:13]} 56. Ke6 {[%emt 0:00:10] Threatens to win with Bf5.} Ra6 {[%emt 0:03:01] Strongly threatening ...Kc5.} 57. Bf5 {[%emt 0:00:58]} Qb4 {[%emt 0:01:16]} 58. Kd7 {[%emt 0:12:48] Hoping for Qd8+.} (58. Qg7 $2 Nxc4 59. Qb7+ Ka5 60. Qd5+ Ka4 61. Qd1+ Qb3 62. Qa1+ Qa3 63. Qxa3+ Kxa3 $19) 58... Ra7+ {[%emt 0:01:22]} 59. Ke6 {[%emt 0:00:09] aiming for Qb8+.} Ra6 {[%emt 0:00:07]} 60. Kd7 {[%emt 0:00:06] Black must now prevent Qd8+.} ({Wrong is} 60. Qg7 $2 Nxc4 61. Qb7+ Ka5 62. Qd5+ Ka4 63. Qd1+ Qb3 64. Qa1+ Qa3 65. Qxa3+ Kxa3 $19) 60... Ra7+ {[%emt 0:00:17] Weighted Error Value: White=0.64/Black=0.31} 1/2-1/2